[Event "Early-Titled-Tuesday-Blitz-September-26-2023"]
[Site "Chess.com"]
[Date "2023.09.26"]
[Round "7"]
[White "jk13"]
[Black "Evgeny81"]
[Result "1/2-1/2"]
[WhiteElo "2622"]
[BlackElo "2743"]
[TimeControl "180+1"]
[EndTime "9:20:07 PDT"]
[Termination "Game drawn by repetition"]

1. e4 {[%clk 0:02:58.3]} 1... e6 {[%clk 0:02:57.4]} 2. d4 {[%clk 0:02:56.9]}
2... d5 {[%clk 0:02:58.3]} 3. Nd2 {[%clk 0:02:57.3]} 3... Nd7 {[%clk 0:02:57.6]}
4. c3 {[%clk 0:02:55.3]} 4... Ne7 {[%clk 0:02:55.7]} 5. Ngf3 {[%clk 0:02:51.8]}
5... c5 {[%clk 0:02:55.4]} 6. exd5 {[%clk 0:02:47.9]} 6... Nxd5 {[%clk
0:02:55.3]} 7. Bc4 {[%clk 0:02:44.5]} 7... N7b6 {[%clk 0:02:50.1]} 8. Bb3 {[%clk
0:02:39.7]} 8... Be7 {[%clk 0:02:47.4]} 9. O-O {[%clk 0:02:39.2]} 9... O-O
{[%clk 0:02:46.8]} 10. Ne4 {[%clk 0:02:36.8]} 10... cxd4 {[%clk 0:02:45]} 11.
cxd4 {[%clk 0:02:34.4]} 11... Bd7 {[%clk 0:02:41.9]} 12. Ne5 {[%clk 0:02:33.5]}
12... Bc6 {[%clk 0:02:38.5]} 13. Re1 {[%clk 0:02:32.9]} 13... Rc8 {[%clk
0:02:23.5]} 14. a3 {[%clk 0:02:24.3]} 14... Qe8 {[%clk 0:02:14.3]} 15. Bc2
{[%clk 0:02:16.7]} 15... Nd7 {[%clk 0:01:48.5]} 16. Nxc6 {[%clk 0:01:58.9]}
16... bxc6 {[%clk 0:01:38.6]} 17. Qd3 {[%clk 0:01:56.9]} 17... N7f6 {[%clk
0:01:33.9]} 18. Ng5 {[%clk 0:01:51.7]} 18... g6 {[%clk 0:01:30.7]} 19. Qh3
{[%clk 0:01:14.4]} 19... Qd7 {[%clk 0:01:26.8]} 20. Nf3 {[%clk 0:01:11.6]} 20...
Rfd8 {[%clk 0:01:22.6]} 21. Ne5 {[%clk 0:00:59.5]} 21... Qe8 {[%clk 0:01:22.9]}
22. Bg5 {[%clk 0:00:45.5]} 22... Nd7 {[%clk 0:01:21.1]} 23. Bh6 {[%clk
0:00:42.6]} 23... Bf8 {[%clk 0:01:16.5]} 24. Bg5 {[%clk 0:00:36.8]} 24... Be7
{[%clk 0:01:10.8]} 25. Bd2 {[%clk 0:00:36.5]} 25... Bf6 {[%clk 0:01:05.4]} 26.
Rad1 {[%clk 0:00:34.7]} 26... Bg7 {[%clk 0:01:04.2]} 27. Bg5 {[%clk 0:00:29.7]}
27... Bf6 {[%clk 0:00:57]} 28. Bh6 {[%clk 0:00:29.2]} 28... Qe7 {[%clk
0:00:56.2]} 29. Ba4 {[%clk 0:00:24.9]} 29... Nxe5 {[%clk 0:00:53.1]} 30. dxe5
{[%clk 0:00:25.5]} 30... Bg5 {[%clk 0:00:53]} 31. Bxg5 {[%clk 0:00:20.7]} 31...
Qxg5 {[%clk 0:00:53.9]} 32. Qf3 {[%clk 0:00:19.1]} 32... a5 {[%clk 0:00:45.6]}
33. g3 {[%clk 0:00:19.2]} 33... h5 {[%clk 0:00:45]} 34. h4 {[%clk 0:00:18.8]}
34... Qe7 {[%clk 0:00:44]} 35. Rc1 {[%clk 0:00:18.1]} 35... c5 {[%clk
0:00:43.1]} 36. Rc2 {[%clk 0:00:17.5]} 36... Nb6 {[%clk 0:00:38]} 37. Bb5 {[%clk
0:00:16.2]} 37... Rd5 {[%clk 0:00:36.1]} 38. Bc4 {[%clk 0:00:14]} 38... Rd4
{[%clk 0:00:32.8]} 39. Bf1 {[%clk 0:00:14.2]} 39... Rcd8 {[%clk 0:00:20.5]} 40.
Rec1 {[%clk 0:00:13.8]} 40... R8d5 {[%clk 0:00:20.6]} 41. Qe2 {[%clk 0:00:12.3]}
41... c4 {[%clk 0:00:17.5]} 42. Qe3 {[%clk 0:00:11.7]} 42... Qc7 {[%clk
0:00:13.3]} 43. b3 {[%clk 0:00:10.2]} 43... Qxe5 {[%clk 0:00:12.2]} 44. Qxe5
{[%clk 0:00:10.2]} 44... Rxe5 {[%clk 0:00:13.1]} 45. Bxc4 {[%clk 0:00:09.3]}
45... Nxc4 {[%clk 0:00:10.2]} 46. Rxc4 {[%clk 0:00:08.9]} 46... Rd3 {[%clk
0:00:10.1]} 47. R1c3 {[%clk 0:00:08.8]} 47... Red5 {[%clk 0:00:09.6]} 48. Rxd3
{[%clk 0:00:07.4]} 48... Rxd3 {[%clk 0:00:09.8]} 49. Ra4 {[%clk 0:00:08.1]}
49... Rxb3 {[%clk 0:00:09.7]} 50. Rxa5 {[%clk 0:00:08.8]} 50... Kg7 {[%clk
0:00:09.6]} 51. Kg2 {[%clk 0:00:08.3]} 51... Kf6 {[%clk 0:00:09.8]} 52. Ra8
{[%clk 0:00:07.9]} 52... e5 {[%clk 0:00:09.5]} 53. a4 {[%clk 0:00:07.6]} 53...
Ra3 {[%clk 0:00:09.8]} 54. a5 {[%clk 0:00:08]} 54... Ke6 {[%clk 0:00:09.6]} 55.
a6 {[%clk 0:00:08.1]} 55... Kf5 {[%clk 0:00:09.5]} 56. Ra7 {[%clk 0:00:07.5]}
56... f6 {[%clk 0:00:09.4]} 57. Ra8 {[%clk 0:00:08.2]} 57... Ra2 {[%clk
0:00:09.2]} 58. Kf1 {[%clk 0:00:08]} 58... Ra3 {[%clk 0:00:07.5]} 59. Ke2 {[%clk
0:00:07.7]} 59... Ra2+ {[%clk 0:00:07.8]} 60. Kf1 {[%clk 0:00:08.2]} 60... Ra1+
{[%clk 0:00:07.5]} 61. Kg2 {[%clk 0:00:07.9]} 61... Ra2 {[%clk 0:00:07.4]} 62.
Kf1 {[%clk 0:00:07.2]} 1/2-1/2

[Event "Early-Titled-Tuesday-Blitz-September-26-2023"]
[Site "Chess.com"]
[Date "2023.09.26"]
[Round "7"]
[White "pinguino120"]
[Black "FlemingA"]
[Result "1-0"]
[WhiteElo "2234"]
[BlackElo "2425"]
[TimeControl "180+1"]
[EndTime "9:20:08 PDT"]
[Termination "pinguino120 won by resignation"]

1. e4 {[%clk 0:03:00.9]} 1... b6 {[%clk 0:02:58.1]} 2. d4 {[%clk 0:02:59.5]}
2... Bb7 {[%clk 0:02:58.2]} 3. Bd3 {[%clk 0:03:00.1]} 3... e6 {[%clk 0:02:57]}
4. Nf3 {[%clk 0:03:00.1]} 4... c5 {[%clk 0:02:55.6]} 5. c3 {[%clk 0:03:00.3]}
5... d5 {[%clk 0:02:53.9]} 6. e5 {[%clk 0:02:57.7]} 6... Be7 {[%clk 0:02:51.2]}
7. O-O {[%clk 0:02:57.1]} 7... Nc6 {[%clk 0:02:50.7]} 8. a3 {[%clk 0:02:50.3]}
8... g5 {[%clk 0:02:50.3]} 9. b4 {[%clk 0:02:33.9]} 9... g4 {[%clk 0:02:42.7]}
10. b5 {[%clk 0:02:27.8]} 10... gxf3 {[%clk 0:02:28.5]} 11. bxc6 {[%clk
0:02:27.9]} 11... fxg2 {[%clk 0:02:16.2]} 12. Kxg2 {[%clk 0:01:58.5]} 12... Bxc6
{[%clk 0:02:15.5]} 13. Qh5 {[%clk 0:01:53.8]} 13... Qd7 {[%clk 0:01:17.3]} 14.
Nd2 {[%clk 0:01:49.4]} 14... O-O-O {[%clk 0:01:07.8]} 15. Nf3 {[%clk 0:01:47.8]}
15... f5 {[%clk 0:00:50.5]} 16. a4 {[%clk 0:01:45.7]} 16... Bxa4 {[%clk
0:00:39]} 17. dxc5 {[%clk 0:01:43.3]} 17... Bxc5 {[%clk 0:00:36.6]} 18. Nd4
{[%clk 0:01:30.4]} 18... Ne7 {[%clk 0:00:31.6]} 19. Nxe6 {[%clk 0:01:08.4]}
19... Rdg8+ {[%clk 0:00:21.1]} 20. Kh1 {[%clk 0:01:08.1]} 20... d4 {[%clk
0:00:18.2]} 21. cxd4 {[%clk 0:00:53.8]} 21... Bc6+ {[%clk 0:00:17.3]} 22. f3
{[%clk 0:00:53.4]} 22... Bxd4 {[%clk 0:00:10.9]} 23. Rxa7 {[%clk 0:00:35.6]}
23... Qxe6 {[%clk 0:00:05.2]} 24. Ba6+ {[%clk 0:00:34.8]} 24... Kb8 {[%clk
0:00:04.9]} 25. Rxe7 {[%clk 0:00:26]} 25... Qxe7 {[%clk 0:00:04.6]} 26. Bf4
{[%clk 0:00:26.2]} 26... Qe6 {[%clk 0:00:03.7]} 27. Rd1 {[%clk 0:00:25.8]} 27...
Bc5 {[%clk 0:00:02.2]} 28. Rc1 {[%clk 0:00:17.7]} 28... Rg6 {[%clk 0:00:02]} 29.
Bc4 {[%clk 0:00:17.3]} 29... Qe7 {[%clk 0:00:01.9]} 30. Ra1 {[%clk 0:00:17.2]}
30... Bxf3+ {[%clk 0:00:02.2]} 31. Qxf3 {[%clk 0:00:16.5]} 31... Qb7 {[%clk
0:00:03]} 32. e6+ {[%clk 0:00:17.1]} 32... Kc8 {[%clk 0:00:02.9]} 33. Qxb7+
{[%clk 0:00:17.7]} 33... Kxb7 {[%clk 0:00:03.3]} 34. e7 {[%clk 0:00:18.5]} 34...
Bxe7 {[%clk 0:00:02.8]} 35. Bd5+ {[%clk 0:00:19.4]} 35... Kc8 {[%clk 0:00:02.8]}
36. Ra8+ {[%clk 0:00:20]} 36... Kd7 {[%clk 0:00:03.5]} 37. Rxh8 {[%clk
0:00:20.1]} 37... Bd6 {[%clk 0:00:03.9]} 38. Rxh7+ {[%clk 0:00:20.6]} 38... Be7
{[%clk 0:00:03.6]} 39. Rf7 {[%clk 0:00:20]} 39... Rd6 {[%clk 0:00:03.7]} 40. Bf3
{[%clk 0:00:19.2]} 40... Rd3 {[%clk 0:00:02.9]} 41. Be2 {[%clk 0:00:17.7]} 41...
Ra3 {[%clk 0:00:02.4]} 42. Rxf5 {[%clk 0:00:17.4]} 42... Ra1+ {[%clk 0:00:02.3]}
43. Kg2 {[%clk 0:00:17.6]} 43... Ra2 {[%clk 0:00:03.2]} 44. Kf2 {[%clk
0:00:16.8]} 44... Bc5+ {[%clk 0:00:03.5]} 45. Ke1 {[%clk 0:00:16.4]} 45... Bb4+
{[%clk 0:00:02.9]} 46. Kf2 {[%clk 0:00:16.7]} 46... Bc5+ {[%clk 0:00:03.4]} 47.
Be3 {[%clk 0:00:17.3]} 47... Ke6 {[%clk 0:00:02.2]} 48. Rf3 {[%clk 0:00:17.3]}
48... Bxe3+ {[%clk 0:00:01.3]} 49. Rxe3+ {[%clk 0:00:17.7]} 49... Kd6 {[%clk
0:00:01.9]} 50. h4 {[%clk 0:00:18.2]} 50... b5 {[%clk 0:00:02.3]} 51. h5 {[%clk
0:00:18.4]} 51... b4 {[%clk 0:00:02.8]} 52. h6 {[%clk 0:00:18.2]} 52... Ra7
{[%clk 0:00:03.5]} 53. Rh3 {[%clk 0:00:17.6]} 53... Rh7 {[%clk 0:00:03.1]} 54.
Bd3 {[%clk 0:00:17.2]} 54... Rh8 {[%clk 0:00:04]} 55. h7 {[%clk 0:00:17.1]}
55... Kc5 {[%clk 0:00:04.6]} 56. Rg3 {[%clk 0:00:16.5]} 56... Kd4 {[%clk
0:00:05]} 57. Bb1 {[%clk 0:00:15.8]} 57... Rf8+ {[%clk 0:00:04.2]} 58. Ke2
{[%clk 0:00:15.8]} 58... Re8+ {[%clk 0:00:03.6]} 59. Kd2 {[%clk 0:00:16.2]}
59... Rf8 {[%clk 0:00:04.1]} 60. Rg8 {[%clk 0:00:16.2]} 60... Rf2+ {[%clk
0:00:04.8]} 61. Ke1 {[%clk 0:00:16.3]} 61... Rb2 {[%clk 0:00:03.4]} 62. h8=Q+
{[%clk 0:00:16.4]} 62... Kc4 {[%clk 0:00:03.1]} 63. Qxb2 {[%clk 0:00:17.3]} 1-0

[Event "Early-Titled-Tuesday-Blitz-September-26-2023"]
[Site "Chess.com"]
[Date "2023.09.26"]
[Round "7"]
[White "amylazy"]
[Black "sonicdravise"]
[Result "0-1"]
[WhiteElo "2450"]
[BlackElo "2654"]
[TimeControl "180+1"]
[EndTime "9:20:09 PDT"]
[Termination "sonicdravise won on time"]

1. d4 {[%clk 0:02:42.1]} 1... Nf6 {[%clk 0:02:59.2]} 2. Nf3 {[%clk 0:02:39.8]}
2... c5 {[%clk 0:02:59.5]} 3. d5 {[%clk 0:02:38.5]} 3... e6 {[%clk 0:02:53]} 4.
Nc3 {[%clk 0:02:36.2]} 4... exd5 {[%clk 0:02:52.3]} 5. Nxd5 {[%clk 0:02:36.2]}
5... Nxd5 {[%clk 0:02:52.2]} 6. Qxd5 {[%clk 0:02:35.7]} 6... Nc6 {[%clk
0:02:51.1]} 7. e4 {[%clk 0:02:24.3]} 7... d6 {[%clk 0:02:49.7]} 8. Ng5 {[%clk
0:02:24.1]} 8... Qf6 {[%clk 0:02:35.2]} 9. Bc4 {[%clk 0:02:16]} 9... Be6 {[%clk
0:02:03.4]} 10. Nxe6 {[%clk 0:02:14.5]} 10... fxe6 {[%clk 0:02:03.8]} 11. Qxe6+
{[%clk 0:02:13.9]} 11... Qxe6 {[%clk 0:02:04.1]} 12. Bxe6 {[%clk 0:02:14.6]}
12... Nd4 {[%clk 0:02:03.8]} 13. Bb3 {[%clk 0:02:14.2]} 13... c4 {[%clk
0:02:02.6]} 14. Ba4+ {[%clk 0:02:02.8]} 14... b5 {[%clk 0:02:02.4]} 15. Be3
{[%clk 0:01:56.7]} 15... bxa4 {[%clk 0:01:59.6]} 16. Bxd4 {[%clk 0:01:56.6]}
16... Be7 {[%clk 0:01:59.1]} 17. Bxg7 {[%clk 0:01:42.8]} 17... Rg8 {[%clk
0:01:58.6]} 18. Bd4 {[%clk 0:01:42.7]} 18... Rxg2 {[%clk 0:01:57.8]} 19. Ke2
{[%clk 0:01:38.6]} 19... Rg4 {[%clk 0:01:50]} 20. Kf3 {[%clk 0:01:37.2]} 20...
Rh4 {[%clk 0:01:45.3]} 21. Rag1 {[%clk 0:01:24]} 21... Kd7 {[%clk 0:01:45.1]}
22. Rg7 {[%clk 0:01:23]} 22... Rf8+ {[%clk 0:01:42.8]} 23. Ke3 {[%clk
0:01:15.7]} 23... Rhf4 {[%clk 0:01:37]} 24. Rf1 {[%clk 0:00:52.9]} 24... Rh4
{[%clk 0:01:35.8]} 25. Rd1 {[%clk 0:00:23.5]} 25... Rxh2 {[%clk 0:01:26.6]} 26.
Be5 {[%clk 0:00:14]} 26... Rh3+ {[%clk 0:01:06.3]} 27. Ke2 {[%clk 0:00:14.3]}
27... Rh6 {[%clk 0:01:00.1]} 28. Bg3 {[%clk 0:00:07.2]} 28... Re6 {[%clk
0:00:56.1]} 29. e5 {[%clk 0:00:04.3]} 29... Kc6 {[%clk 0:00:52.4]} 30. f4 {[%clk
0:00:05.2]} 30... dxe5 {[%clk 0:00:49.3]} 31. fxe5 {[%clk 0:00:06.1]} 31... h5
{[%clk 0:00:45]} 32. Rh7 {[%clk 0:00:05.4]} 32... h4 {[%clk 0:00:45.5]} 33. Bh2
{[%clk 0:00:05.5]} 33... Rb8 {[%clk 0:00:41]} 34. b3 {[%clk 0:00:04.8]} 34...
axb3 {[%clk 0:00:40.6]} 35. cxb3 {[%clk 0:00:05.7]} 35... cxb3 {[%clk
0:00:40.5]} 36. axb3 {[%clk 0:00:05.9]} 36... Rxb3 {[%clk 0:00:40.5]} 37. Rc1+
{[%clk 0:00:06]} 37... Kd5 {[%clk 0:00:38.8]} 38. Rd1+ {[%clk 0:00:06]} 38...
Ke4 {[%clk 0:00:38]} 39. Rg7 {[%clk 0:00:06.5]} 39... Rb2+ {[%clk 0:00:34]} 40.
Rd2 {[%clk 0:00:06.9]} 40... Rxd2+ {[%clk 0:00:32.9]} 41. Kxd2 {[%clk
0:00:07.8]} 41... a5 {[%clk 0:00:31]} 42. Ke2 {[%clk 0:00:05.8]} 42... Kd5
{[%clk 0:00:22.7]} 43. Rg4 {[%clk 0:00:05.2]} 43... Ra6 {[%clk 0:00:20.6]} 44.
Ra4 {[%clk 0:00:05.1]} 44... Bb4 {[%clk 0:00:19.6]} 45. Kf3 {[%clk 0:00:05]}
45... Rg6 {[%clk 0:00:18.2]} 46. Bf4 {[%clk 0:00:04.2]} 46... h3 {[%clk
0:00:15.7]} 47. Ra2 {[%clk 0:00:04.2]} 47... Bc3 {[%clk 0:00:08.2]} 48. Rh2
{[%clk 0:00:03.3]} 48... a4 {[%clk 0:00:07.4]} 49. Rxh3 {[%clk 0:00:03.3]} 49...
a3 {[%clk 0:00:07.9]} 50. Rh5 {[%clk 0:00:02.5]} 50... a2 {[%clk 0:00:07.5]} 0-1

[Event "Early-Titled-Tuesday-Blitz-September-26-2023"]
[Site "Chess.com"]
[Date "2023.09.26"]
[Round "7"]
[White "BogdanDeac"]
[Black "DuleMudule"]
[Result "0-1"]
[WhiteElo "2954"]
[BlackElo "2792"]
[TimeControl "180+1"]
[EndTime "9:20:19 PDT"]
[Termination "DuleMudule won on time"]

1. b3 {[%clk 0:03:00.9]} 1... e5 {[%clk 0:02:58.6]} 2. Bb2 {[%clk 0:03:01.3]}
2... Nc6 {[%clk 0:02:59.2]} 3. Nf3 {[%clk 0:03:01.8]} 3... Bd6 {[%clk
0:02:56.8]} 4. c4 {[%clk 0:03:00.8]} 4... Nf6 {[%clk 0:02:55.4]} 5. d3 {[%clk
0:02:59.7]} 5... O-O {[%clk 0:02:50.8]} 6. a3 {[%clk 0:02:56.1]} 6... Qe7 {[%clk
0:02:31.3]} 7. Nc3 {[%clk 0:02:24.5]} 7... a6 {[%clk 0:02:19.9]} 8. b4 {[%clk
0:02:11.7]} 8... b6 {[%clk 0:02:17.2]} 9. e3 {[%clk 0:02:04.6]} 9... a5 {[%clk
0:02:10.9]} 10. b5 {[%clk 0:01:53]} 10... Nd8 {[%clk 0:02:10.6]} 11. Be2 {[%clk
0:01:43.2]} 11... Bb7 {[%clk 0:02:03.7]} 12. O-O {[%clk 0:01:42.7]} 12... Ne6
{[%clk 0:02:03.8]} 13. Nd2 {[%clk 0:01:41.7]} 13... Nc5 {[%clk 0:01:57.6]} 14.
Qc2 {[%clk 0:01:33.7]} 14... Rae8 {[%clk 0:01:53.9]} 15. f3 {[%clk 0:00:50.3]}
15... Ne6 {[%clk 0:01:44.3]} 16. Nb3 {[%clk 0:00:49.6]} 16... g6 {[%clk
0:01:36.4]} 17. Rfe1 {[%clk 0:00:40.5]} 17... Nc5 {[%clk 0:01:27.5]} 18. Nd2
{[%clk 0:00:33.7]} 18... Qe6 {[%clk 0:01:18]} 19. Bf1 {[%clk 0:00:27.9]} 19...
Qf5 {[%clk 0:01:14.4]} 20. Nd5 {[%clk 0:00:22.7]} 20... Nxd5 {[%clk 0:01:02.2]}
21. cxd5 {[%clk 0:00:22.2]} 21... Qg5 {[%clk 0:01:02.7]} 22. e4 {[%clk
0:00:19.3]} 22... Be7 {[%clk 0:00:40.8]} 23. d4 {[%clk 0:00:09]} 23... exd4
{[%clk 0:00:37.6]} 24. Bxd4 {[%clk 0:00:09.9]} 24... Bf6 {[%clk 0:00:36.4]} 25.
Be3 {[%clk 0:00:06.3]} 25... Qh5 {[%clk 0:00:33.5]} 26. Rad1 {[%clk 0:00:03.7]}
26... d6 {[%clk 0:00:32.6]} 27. Nc4 {[%clk 0:00:04]} 27... Bc8 {[%clk
0:00:28.2]} 28. Qf2 {[%clk 0:00:03.7]} 28... g5 {[%clk 0:00:26.7]} 29. Bd4
{[%clk 0:00:02.7]} 29... Qg6 {[%clk 0:00:23.1]} 30. e5 {[%clk 0:00:02.7]} 30...
dxe5 {[%clk 0:00:21.2]} 31. Nxe5 {[%clk 0:00:03.6]} 31... Qg7 {[%clk 0:00:21.3]}
32. Nc6 {[%clk 0:00:03.8]} 32... Bxd4 {[%clk 0:00:18.9]} 33. Nxd4 {[%clk
0:00:04.7]} 33... Bd7 {[%clk 0:00:18.6]} 34. Nc6 {[%clk 0:00:04.8]} 34... Bxc6
{[%clk 0:00:18.2]} 35. bxc6 {[%clk 0:00:05.7]} 35... Qf6 {[%clk 0:00:18.4]} 36.
Qg3 {[%clk 0:00:05.9]} 36... Qf4 {[%clk 0:00:17.3]} 37. Qxf4 {[%clk 0:00:05.6]}
37... gxf4 {[%clk 0:00:18.2]} 38. Rxe8 {[%clk 0:00:05.8]} 38... Rxe8 {[%clk
0:00:18.3]} 39. d6 {[%clk 0:00:06.5]} 39... cxd6 {[%clk 0:00:18.7]} 40. Rxd6
{[%clk 0:00:07.2]} 40... Rc8 {[%clk 0:00:19]} 41. Bb5 {[%clk 0:00:06.9]} 41...
Kf8 {[%clk 0:00:18.3]} 42. Rh6 {[%clk 0:00:06.8]} 42... Ne6 {[%clk 0:00:16.9]}
43. Rxh7 {[%clk 0:00:06.8]} 43... Ke7 {[%clk 0:00:17.4]} 44. a4 {[%clk
0:00:05.8]} 44... Rd8 {[%clk 0:00:16.6]} 45. Rh5 {[%clk 0:00:05]} 45... Rd1+
{[%clk 0:00:15.3]} 46. Kf2 {[%clk 0:00:05.4]} 46... Rd2+ {[%clk 0:00:15.6]} 47.
Kf1 {[%clk 0:00:05.8]} 47... Rd1+ {[%clk 0:00:14.6]} 48. Ke2 {[%clk 0:00:05.5]}
48... Rg1 {[%clk 0:00:14.2]} 49. Kf2 {[%clk 0:00:05.1]} 49... Rc1 {[%clk
0:00:14.8]} 50. Rd5 {[%clk 0:00:04.9]} 50... Kf6 {[%clk 0:00:13.8]} 51. Rd6
{[%clk 0:00:03.8]} 51... Rc2+ {[%clk 0:00:14]} 52. Kf1 {[%clk 0:00:03.7]} 52...
Rc1+ {[%clk 0:00:14.1]} 53. Ke2 {[%clk 0:00:03.9]} 53... Ke5 {[%clk 0:00:14.1]}
54. Rd7 {[%clk 0:00:03.7]} 54... Rc2+ {[%clk 0:00:13.3]} 55. Kd1 {[%clk
0:00:02.1]} 55... Rc5 {[%clk 0:00:08.4]} 56. Rxf7 {[%clk 0:00:02]} 56... Nd4
{[%clk 0:00:08.1]} 57. Re7+ {[%clk 0:00:02.2]} 57... Kd6 {[%clk 0:00:07.5]} 58.
Rd7+ {[%clk 0:00:02.5]} 58... Ke5 {[%clk 0:00:08.1]} 59. c7 {[%clk 0:00:02.6]}
59... Nxb5 {[%clk 0:00:07.9]} 60. axb5 {[%clk 0:00:02.5]} 60... a4 {[%clk
0:00:08.8]} 0-1

[Event "Early-Titled-Tuesday-Blitz-September-26-2023"]
[Site "Chess.com"]
[Date "2023.09.26"]
[Round "7"]
[White "Mackster23"]
[Black "Jagerrmeisterr"]
[Result "0-1"]
[WhiteElo "2569"]
[BlackElo "2699"]
[TimeControl "180+1"]
[EndTime "9:20:21 PDT"]
[Termination "Jagerrmeisterr won by resignation"]

1. e4 {[%clk 0:03:00.9]} 1... c6 {[%clk 0:02:59]} 2. d4 {[%clk 0:03:00.6]} 2...
d5 {[%clk 0:02:59.5]} 3. Nd2 {[%clk 0:03:00.6]} 3... dxe4 {[%clk 0:02:59.9]} 4.
Nxe4 {[%clk 0:03:01.5]} 4... Nf6 {[%clk 0:03:00.7]} 5. Nxf6+ {[%clk 0:03:01.9]}
5... gxf6 {[%clk 0:03:01.6]} 6. c3 {[%clk 0:03:01.9]} 6... Bf5 {[%clk
0:03:01.6]} 7. Nf3 {[%clk 0:03:01.6]} 7... e6 {[%clk 0:03:01.1]} 8. g3 {[%clk
0:03:01.8]} 8... Qd5 {[%clk 0:02:58.8]} 9. Bg2 {[%clk 0:03:01.6]} 9... Qb5
{[%clk 0:02:59.4]} 10. a4 {[%clk 0:02:39.7]} 10... Qa6 {[%clk 0:02:55.9]} 11.
Bf1 {[%clk 0:02:39.5]} 11... Qa5 {[%clk 0:02:56.2]} 12. b4 {[%clk 0:02:38.2]}
12... Qd5 {[%clk 0:02:56]} 13. Bg2 {[%clk 0:02:37.9]} 13... Qc4 {[%clk
0:02:55.9]} 14. Bd2 {[%clk 0:01:45.7]} 14... Nd7 {[%clk 0:02:47.4]} 15. Bf1
{[%clk 0:01:44.2]} 15... Bd3 {[%clk 0:02:38.4]} 16. Bxd3 {[%clk 0:01:41.2]}
16... Qxd3 {[%clk 0:02:38.4]} 17. Qe2 {[%clk 0:01:41.9]} 17... Qxe2+ {[%clk
0:02:37]} 18. Kxe2 {[%clk 0:01:42.8]} 18... Bd6 {[%clk 0:02:19.3]} 19. c4 {[%clk
0:01:37.9]} 19... Ke7 {[%clk 0:02:17.7]} 20. c5 {[%clk 0:01:36.6]} 20... Bc7
{[%clk 0:02:17.9]} 21. b5 {[%clk 0:01:36.4]} 21... f5 {[%clk 0:02:11]} 22. Bg5+
{[%clk 0:01:35.2]} 22... f6 {[%clk 0:02:09]} 23. Be3 {[%clk 0:01:33.7]} 23... e5
{[%clk 0:01:48.4]} 24. Rab1 {[%clk 0:01:25.4]} 24... Rab8 {[%clk 0:01:41.9]} 25.
Rhd1 {[%clk 0:01:24.5]} 25... Ke6 {[%clk 0:01:39.5]} 26. dxe5 {[%clk 0:00:53]}
26... fxe5 {[%clk 0:01:38.2]} 27. Ng5+ {[%clk 0:00:53.3]} 27... Ke7 {[%clk
0:01:35.2]} 28. Nf7 {[%clk 0:00:53.3]} 28... Rhf8 {[%clk 0:01:29.9]} 29. Nd6
{[%clk 0:00:38.2]} 29... f4 {[%clk 0:01:16]} 30. gxf4 {[%clk 0:00:37.7]} 30...
exf4 {[%clk 0:01:16.5]} 31. Bd4 {[%clk 0:00:37.3]} 31... Bxd6 {[%clk 0:01:15.8]}
32. cxd6+ {[%clk 0:00:38.2]} 32... Ke6 {[%clk 0:01:15.8]} 33. Bxa7 {[%clk
0:00:24.8]} 33... Ra8 {[%clk 0:01:14.8]} 34. bxc6 {[%clk 0:00:25.3]} 34... bxc6
{[%clk 0:01:08.1]} 35. Rb7 {[%clk 0:00:24.1]} 35... f3+ {[%clk 0:01:06]} 36. Ke3
{[%clk 0:00:23.2]} 36... Rf5 {[%clk 0:01:04.3]} 37. Rd4 {[%clk 0:00:15.8]} 37...
Re5+ {[%clk 0:00:34.4]} 38. Kxf3 {[%clk 0:00:15.1]} 38... Rf8+ {[%clk
0:00:32.7]} 39. Kg2 {[%clk 0:00:15]} 39... c5 {[%clk 0:00:30.8]} 40. Rd2 {[%clk
0:00:13.2]} 40... Rf4 {[%clk 0:00:25.7]} 41. Bb8 {[%clk 0:00:08.3]} 41... Rg5+
{[%clk 0:00:25.2]} 42. Kf1 {[%clk 0:00:07.8]} 42... Rxa4 {[%clk 0:00:16.3]} 43.
Re2+ {[%clk 0:00:08.2]} 43... Re5 {[%clk 0:00:16.6]} 44. Rxe5+ {[%clk
0:00:07.4]} 44... Nxe5 {[%clk 0:00:08.6]} 45. Re7+ {[%clk 0:00:08.3]} 45... Kd5
{[%clk 0:00:06.8]} 46. Rxe5+ {[%clk 0:00:08.8]} 46... Kc6 {[%clk 0:00:07.4]} 47.
Rh5 {[%clk 0:00:06.7]} 47... c4 {[%clk 0:00:06.2]} 48. Rxh7 {[%clk 0:00:05.5]}
48... Rb4 {[%clk 0:00:04.5]} 49. Rc7+ {[%clk 0:00:03.7]} 49... Kd5 {[%clk
0:00:04.3]} 50. Rb7 {[%clk 0:00:04]} 50... Rxb7 {[%clk 0:00:04.2]} 51. Bc7
{[%clk 0:00:04.3]} 51... Kc6 {[%clk 0:00:02.8]} 52. Ke2 {[%clk 0:00:04]} 52...
Rb2+ {[%clk 0:00:03.2]} 53. Ke3 {[%clk 0:00:03.8]} 53... c3 {[%clk 0:00:03.8]}
54. h4 {[%clk 0:00:03.2]} 54... Rd2 {[%clk 0:00:03.1]} 55. h5 {[%clk 0:00:02.3]}
55... Rd5 {[%clk 0:00:03.4]} 56. Ba5 {[%clk 0:00:01.8]} 56... Rxa5 {[%clk
0:00:03.6]} 57. d7 {[%clk 0:00:01.6]} 57... Kxd7 {[%clk 0:00:03.9]} 58. Kd3
{[%clk 0:00:02.5]} 58... Rxh5 {[%clk 0:00:04.2]} 0-1